bitfinex/quotes_ETHUSD_20241109
["timestamp","ask_amount","ask_price","bid_price","bid_amount"]
[1731118190198,0.55,2982.9,2982.1,0.06706008]
[1731118190598,1.25165226,2982.9,2982.1,0.06706008]
[1731118190994,0.7575,2982.8,2982.1,0.06706008]
[1731118196008,0.7575,2982.8,2982.0,0.7687]
[1731118196521,0.7575,2982.8,2982.1,0.06705993]
[1731118196844,0.7575,2982.8,2981.9,0.0670599]
[1731118198165,0.7575,2982.8,2981.8,0.7687]
[1731118198805,1.45915226,2982.8,2981.8,0.7687]
[1731118199315,1.45915226,2982.8,2981.9,1.31026839]
[1731118199316,0.7974,2982.7,2981.9,1.31026839]
[1731118199514,0.7974,2982.7,2982.0,0.20789684]
[1731118200525,0.7974,2982.7,2982.1,0.0670599]
[1731118201315,0.7974,2983.0,2982.3,1.31026839]
[1731118201608,0.7974,2983.0,2982.4,0.06705203]
[1731118202248,0.7974,2983.0,2982.4,0.28668407]
[1731118202550,0.7974,2983.0,2982.4,0.21963204]
[1731118202762,0.7974,2983.0,2982.2,0.819]
[1731118203087,0.7974,2983.0,2982.3,0.06705204]
[1731118205742,0.7974,2983.0,2982.4,1.31026839]
[1731118205919,12.36325683,2983.4,2982.5,0.06704635]
[1731118206121,0.7974,2983.3,2982.5,0.06704635]
[1731118207130,0.7974,2983.3,2982.8,1.31026839]
[1731118207368,12.36325683,2983.4,2983.0,1.31026839]
[1731118207665,12.36325683,2983.5,2982.8,1.31026839]
[1731118208035,12.36325683,2983.4,2982.8,1.31026839]
[1731118208220,0.7974,2983.6,2982.9,0.51292684]
[1731118208422,0.7974,2983.6,2982.1,0.01]
[1731118208423,0.7974,2983.6,2982.4,1.31026839]
[1731118208629,0.55,2983.6,2982.5,0.06704448]
[1731118208848,0.7974,2983.5,2982.5,0.06704448]
[1731118210463,0.7974,2983.1,2982.2,1.31026839]
[1731118210677,0.7974,2983.1,2982.2,1.52319523]
[1731118211028,0.7974,2983.1,2982.2,0.21292684]
[1731118211437,0.7974,2982.9,2982.2,0.21292684]
[1731118211659,0.7974,2982.9,2982.2,0.06705484]
[1731118212538,0.7974,2982.9,2982.0,0.06705619]
[1731118213742,0.7974,2982.9,2982.0,1.37732458]
[1731118214768,0.7974,2982.6,2981.4,0.819]
[1731118214967,0.7974,2982.4,2981.4,0.819]
[1731118216167,0.7974,2982.4,2981.5,1.31026839]
[1731118218177,0.7974,2982.4,2981.9,1.31026839]
[1731118218376,0.7974,2982.6,2982.1,1.31026839]
[1731118219486,0.7974,2982.6,2982.2,0.06705828]
[1731118219776,1.05266817,2983.1,2982.3,0.8124]
[1731118219777,0.812,2982.9,2982.3,0.8124]
[1731118222077,0.55,2982.8,2981.6,0.8124]
[1731118222260,0.55,2982.4,2981.3,2.12266839]
[1731118222461,0.812,2982.3,2981.3,2.12266839]
[1731118222855,0.812,2982.1,2980.7,0.8124]
[1731118223053,0.812,2982.1,2981.0,1.31026839]
[1731118223254,0.812,2982.0,2981.0,1.31026839]
[1731118223463,0.812,2982.0,2980.7,0.8124]
[1731118224837,0.55,2981.9,2980.7,0.8124]
[1731118225177,0.812,2981.4,2980.4,0.8124]
[1731118225680,0.812,2981.4,2980.5,0.06709179]
[1731118226040,0.812,2981.4,2980.5,2.90773465]
[1731118226267,0.812,2981.4,2980.6,0.37201347]
[1731118227290,0.812,2981.4,2980.4,0.8124]
[1731118229082,0.812,2981.4,2980.6,3.0]
[1731118230714,0.812,2981.4,2980.7,0.06708803]
[1731118231716,0.812,2981.4,2980.6,3.0]
[1731118232205,0.812,2981.4,2980.4,3.8124]
[1731118232401,0.812,2981.4,2980.5,0.66530429]
[1731118233149,0.812,2981.4,2980.6,0.06708959]
[1731118233302,0.812,2981.4,2980.6,2.90773245]
[1731118233996,0.812,2981.4,2980.7,0.8129]
[1731118234194,0.812,2981.4,2980.8,0.06708799]
[1731118235085,0.812,2981.4,2980.8,0.35786107]
[1731118237286,0.55,2981.9,2979.8,0.01]
[1731118237287,0.55,2981.1,2979.8,0.01]
[1731118237487,0.8239,2981.0,2979.8,3.01]
[1731118240005,0.8239,2981.0,2979.4,0.340653]
[1731118240006,0.55,2980.9,2979.4,0.1382652]
[1731118240210,0.8088,2980.8,2979.4,0.9697652]
[1731118240386,0.8088,2980.8,2979.5,0.38104081]
[1731118241922,0.55,2980.7,2979.5,0.38104081]
[1731118242125,0.8088,2980.6,2979.5,0.38104081]
[1731118243924,0.8088,2980.4,2979.5,0.38104081]
[1731118245236,0.55,2980.3,2979.5,0.38104081]
[1731118245532,0.8088,2980.2,2979.6,0.3519306]
[1731118245716,0.8088,2980.2,2979.5,0.44815526]
[1731118245889,0.8088,2980.2,2979.5,0.06711445]
[1731118246245,0.8088,2980.2,2979.5,0.06711784]
[1731118246530,0.8088,2980.2,2979.5,0.06711492]
[1731118247619,0.8088,2980.2,2979.4,0.1382652]
[1731118248495,0.8088,2980.2,2979.5,0.06711496]
[1731118248696,0.8088,2980.2,2979.5,0.38765298]
[1731118249810,0.8088,2980.2,2979.5,0.32053802]
[1731118250525,0.8088,2980.2,2979.6,0.06711496]
[1731118250894,0.8088,2980.2,2979.5,0.32053802]
[1731118251099,0.8088,2980.2,2979.6,2.84064286]
[1731118251421,0.8088,2980.2,2979.9,2.84064286]
[1731118252506,0.8088,2980.2,2979.7,4.14761809]
[1731118253738,0.8088,2981.0,2979.8,0.06710695]
[1731118255543,0.8088,2981.0,2979.7,4.14761809]
[1731118255751,0.8088,2981.0,2979.8,0.6988261]
[1731118259844,0.55,2980.9,2979.8,0.6988261]
[1731118260156,0.8149,2980.8,2979.8,0.6988261]
[1731118260866,0.8149,2980.8,2979.6,3.0]
[1731118262427,0.8149,2980.8,2979.5,2.84064286]
[1731118264563,0.8149,2980.6,2979.5,2.84064286]
[1731118265637,0.8149,2980.6,2979.4,0.9697652]
[1731118269481,0.8149,2980.6,2979.4,0.1382652]
[1731118269678,0.8149,2980.6,2979.5,0.31382652]
[1731118271291,0.8149,2980.6,2979.6,0.06711032]
[1731118271489,0.8149,2980.6,2979.5,3.93586938]
[1731118271699,0.8149,2980.6,2979.6,3.0]
[1731118273991,0.8149,2980.6,2979.5,0.31382652]
[1731118274196,0.8041,2980.4,2979.5,0.38094312]
[1731118274502,0.8041,2980.2,2979.5,0.38094312]
[1731118274673,0.8041,2980.2,2979.5,0.31382652]
[1731118274878,0.8041,2980.2,2979.4,0.1382652]
[1731118275887,0.8041,2980.2,2979.5,0.06711869]
[1731118278243,0.8041,2980.2,2979.4,0.1382652]
[1731118279512,0.8041,2980.2,2979.4,0.20538191]
[1731118279839,0.8041,2980.2,2979.4,0.1382652]
[1731118279973,0.8041,2980.2,2979.5,0.31382652]
[1731118282323,0.8041,2980.2,2979.5,3.15446938]
[1731118282503,0.8041,2980.2,2979.6,3.06711107]
[1731118283185,0.8041,2980.2,2979.6,3.0]
[1731118284017,0.8041,2980.2,2979.7,0.06710832]
[1731118284312,0.8041,2980.2,2979.8,0.30671083]
[1731118285108,0.8041,2980.2,2979.5,0.31382652]
[1731118285411,0.8041,2980.2,2979.6,0.06711615]
[1731118286416,0.8041,2980.2,2979.4,0.32901878]
[1731118287481,0.8041,2980.2,2979.5,0.06711663]
[1731118290484,0.8041,2980.2,2979.4,0.32901878]
[1731118291525,0.8041,2980.2,2979.5,0.06711268]
[1731118291679,0.8041,2980.2,2979.4,0.32901878]
[1731118292500,0.8041,2980.2,2979.5,0.06711269]
[1731118292795,0.8041,2980.2,2979.4,0.32901878]
[1731118293782,0.8041,2980.2,2979.5,0.06711269]
[1731118294001,0.8041,2980.2,2979.4,0.32901878]
[1731118294521,0.8041,2980.2,2979.5,0.06711267]
[1731118294687,0.8041,2980.2,2979.5,0.83201267]
[1731118295091,0.8041,2980.2,2979.6,0.41610315]
[1731118295313,0.8041,2980.2,2979.7,0.06711181]
[1731118295624,0.7508,2980.1,2979.4,0.1382652]
[1731118306535,0.7508,2980.1,2979.4,0.9433652]
[1731118307642,0.7508,2980.1,2979.4,0.1382652]
[1731118307820,0.8303,2979.9,2979.4,0.1382652]
[1731118308339,3.67457713,2979.9,2979.4,0.1382652]
[1731118308513,0.8303,2979.8,2979.4,0.1382652]
[1731118308845,1.3803,2979.5,2979.4,0.1382652]
[1731118309002,1.80275771,2979.5,2979.4,0.1382652]
[1731118310643,0.8303,2979.0,2978.1,3.0]
[1731118310802,0.8303,2979.0,2978.1,3.06714669]
[1731118311009,0.8303,2979.0,2978.1,3.0]
[1731118311230,0.8303,2979.0,2978.1,3.06714669]
[1731118311443,0.8303,2979.0,2978.1,3.73379367]
[1731118311942,0.8303,2979.0,2977.2,6.87789286]
[1731118311943,0.8303,2978.7,2977.5,0.8051]
[1731118312642,12.36325683,2979.2,2977.3,0.8051]
[1731118312643,0.8303,2978.4,2977.3,0.8051]
[1731118313201,2.84427713,2978.5,2977.4,0.0671575]
[1731118313202,0.8303,2978.2,2977.4,0.0671575]
[1731118313403,0.8303,2978.2,2977.2,0.06716494]
[1731118313606,0.8303,2978.2,2977.1,0.99669806]
[1731118313806,0.8303,2978.2,2977.1,0.8051]
[1731118314628,0.8303,2978.2,2977.2,0.06716253]
[1731118316248,0.8303,2978.2,2977.2,0.0671627]
[1731118316648,0.8303,2978.2,2977.1,0.8051]
[1731118317146,0.8303,2978.2,2977.2,0.06716546]
[1731118317938,0.8303,2978.2,2977.1,0.8051]
[1731118318137,0.8303,2978.2,2977.2,0.44766799]
[1731118318309,0.8303,2978.2,2977.3,0.8051]
[1731118318640,0.8303,2978.2,2977.4,0.06715753]
[1731118319244,0.8303,2978.2,2977.5,0.06715758]
[1731118320107,0.8303,2978.2,2977.5,3.0]
[1731118320450,0.8303,2978.2,2977.6,0.3]
[1731118320653,0.8303,2978.2,2977.5,3.0]
[1731118321146,0.8303,2978.2,2977.3,0.8051]
[1731118322324,0.8303,2978.2,2977.4,0.06715727]
[1731118323035,0.8303,2978.2,2977.4,3.86005725]
[1731118323349,0.8303,2978.2,2977.4,3.86005306]
[1731118323550,0.8303,2978.2,2977.5,0.67043302]
[1731118323722,0.8303,2978.2,2977.6,0.06715332]
[1731118323927,0.8303,2978.2,2977.5,0.67043302]
[1731118325039,0.8303,2978.2,2977.4,0.7929]
[1731118326232,0.8303,2978.2,2977.5,2.84427713]
[1731118326483,0.8303,2978.2,2977.6,3.0]
[1731118326973,0.8303,2978.2,2977.7,0.06715315]
[1731118327909,0.8303,2978.2,2977.6,3.0]
[1731118328132,0.8303,2978.2,2977.7,0.58442771]
[1731118330156,0.8303,2978.2,2977.8,0.06715335]
[1731118330315,0.8303,2978.2,2977.7,0.58442771]
[1731118330511,0.8303,2978.2,2977.4,0.7929]
[1731118330951,0.8303,2978.2,2977.4,3.7929]
[1731118331130,0.8303,2978.2,2977.5,3.0]
[1731118331333,0.8303,2978.2,2977.2,0.7929]
[1731118331820,0.8303,2978.2,2977.3,0.06715737]
[1731118332030,0.8303,2978.2,2977.3,3.06715737]
[1731118332266,0.8303,2978.2,2977.5,0.7929]
[1731118332750,0.8303,2978.2,2977.6,2.84427713]
[1731118332964,0.55,2979.2,2977.7,3.06715146]
[1731118333111,0.8124,2979.1,2977.8,0.7929]
[1731118335261,0.8124,2979.1,2978.1,0.7929]
[1731118335556,0.8124,2979.1,2978.2,0.37929]
[1731118337550,0.8124,2979.1,2978.4,0.7929]
[1731118337867,0.8124,2979.1,2978.5,0.06713166]
[1731118338069,0.8124,2979.1,2978.4,0.7929]
[1731118338227,0.8124,2979.1,2978.2,0.7929]
[1731118338556,0.8124,2979.1,2978.3,0.38029]
[1731118339228,0.8124,2979.1,2977.9,0.7751]
[1731118339425,0.8124,2979.1,2977.6,0.7751]
[1731118341643,0.8124,2979.1,2977.8,3.0]
[1731118341838,0.8124,2979.1,2978.0,3.61937713]
[1731118342061,0.8124,2979.1,2978.4,3.0]
[1731118342394,0.8124,2979.1,2978.5,1.35952771]
[1731118342601,0.8124,2979.1,2978.6,2.84427713]
[1731118342749,0.8124,2979.1,2978.9,2.84427713]
[1731118342951,0.8092,2980.3,2979.0,3.84222378]
[1731118343308,0.8092,2980.3,2979.4,3.0]
[1731118343478,0.8092,2980.3,2979.5,0.65153664]
[1731118343688,0.8092,2980.3,2979.7,3.0]
[1731118344303,0.8092,2980.3,2979.5,0.58442771]
[1731118344456,0.8092,2980.3,2979.4,3.0]
[1731118344656,0.8092,2980.3,2979.7,3.0]
[1731118345834,15.21753396,2981.6,2979.9,3.61937713]
[1731118345835,0.8092,2981.4,2979.9,3.61937713]
[1731118346053,0.8092,2981.4,2980.0,3.0]
[1731118346491,0.8092,2981.4,2979.7,3.0]
[1731118346696,0.8092,2981.2,2979.7,3.0]
[1731118347201,0.55,2981.2,2979.7,3.0]
[1731118347364,0.8092,2981.1,2979.7,3.0]
[1731118350482,0.8092,2981.1,2979.8,0.06710231]
[1731118350794,0.8092,2981.1,2979.9,0.30671023]
[1731118351000,0.8092,2981.1,2980.0,0.06710232]
[1731118351301,0.8092,2981.1,2979.9,0.30671023]
[1731118352074,0.8092,2981.1,2980.0,3.0]
[1731118352681,12.36325683,2981.5,2979.0,0.7933]
[1731118352682,1.3189,2980.8,2979.0,0.7933]
[1731118352890,0.7689,2980.5,2979.0,2.84427713]
[1731118353081,0.7689,2980.3,2979.1,0.28442771]
[1731118353502,0.7689,2980.3,2979.2,0.06711948]
[1731118353715,0.55,2980.2,2979.1,0.28442771]
[1731118354006,0.7689,2980.1,2979.1,0.28442771]
[1731118354504,0.7689,2980.1,2978.7,2.84427713]
[1731118355287,12.36325683,2980.6,2978.7,2.84427713]
[1731118355288,0.7689,2979.9,2978.7,2.84427713]
[1731118355488,0.7689,2979.9,2978.8,3.0]
[1731118355920,0.7689,2979.9,2978.9,0.06712877]
[1731118356682,0.7689,2979.9,2978.8,3.0]
[1731118356911,0.7689,2979.9,2978.9,0.58442771]
[1731118357229,0.7689,2979.9,2979.4,3.0]
[1731118357495,0.7689,2979.9,2979.5,0.0671109]
[1731118358029,0.7689,2979.9,2979.4,3.0]
[1731118358433,0.7689,2979.9,2979.5,0.06711491]
[1731118358729,0.7689,2979.9,2979.6,0.30671149]
[1731118360720,0.7689,2979.9,2979.7,0.06711511]
[1731118361131,0.7689,2979.9,2979.6,0.30671149]
[1731118361512,0.7689,2979.9,2979.7,0.067112]
[1731118362044,0.7689,2979.9,2979.0,2.84427713]
[1731118362199,0.7689,2979.9,2979.1,0.34287048]
[1731118362402,0.7689,2979.9,2978.7,3.66137713]
[1731118362822,0.7689,2979.9,2979.0,2.84427713]
[1731118363299,0.7689,2979.9,2979.1,3.0]
[1731118364846,0.7689,2979.9,2979.6,2.84427713]
[1731118365017,0.7689,2979.9,2979.7,3.35154048]
[1731118365226,0.7689,2979.9,2979.7,3.28442771]
[1731118365611,0.7689,2979.9,2979.7,3.35154117]
[1731118365814,0.7625,2981.0,2979.8,0.8171]
[1731118366057,0.7625,2981.0,2980.3,2.84427713]
[1731118366236,0.7625,2981.0,2980.4,3.06709131]
[1731118366713,0.7625,2981.0,2980.7,3.0]
[1731118367032,0.7625,2981.0,2980.7,3.06709015]
[1731118367354,0.7625,2981.9,2980.7,3.0]
[1731118367669,0.7625,2981.9,2980.8,0.58442771]
[1731118369109,12.36325683,2982.5,2980.4,3.0]
[1731118369110,0.8309,2981.7,2980.4,3.0]
[1731118369348,0.55,2981.6,2980.4,3.0]
[1731118369637,0.8309,2981.5,2980.1,3.0]
[1731118370327,0.8309,2981.1,2979.7,3.12870484]
[1731118371421,0.55,2981.0,2979.7,3.12870484]
[1731118371752,0.8309,2980.9,2979.7,3.12870484]
[1731118372123,0.55,2980.8,2979.7,0.28442771]
[1731118372325,0.8309,2980.7,2979.4,2.84427713]
[1731118372663,0.8309,2980.7,2979.3,0.8002]
[1731118372865,0.8309,2980.7,2980.0,2.84427713]
[1731118373068,0.8309,2980.7,2980.1,0.06710197]
[1731118373428,0.8309,2980.7,2980.1,3.06710199]
[1731118373623,0.8309,2980.7,2980.1,3.6582399]
[1731118373860,0.8309,2980.7,2980.1,3.59113791]
[1731118374031,0.8309,2980.7,2980.1,3.6582399]
[1731118374357,0.8309,2980.7,2980.1,0.59113791]
[1731118374632,0.8309,2980.7,2979.8,3.0]
[1731118379372,0.8309,2980.7,2979.5,3.0]
[1731118382002,0.7995,2980.5,2979.5,3.0]
[1731118382693,0.7995,2980.5,2979.6,0.06711578]
[1731118382887,0.7995,2980.5,2979.7,0.30671158]
[1731118388391,0.55,2980.4,2979.1,2.84427713]
[1731118388567,0.55,2980.2,2979.1,2.84427713]
[1731118388767,0.7995,2980.3,2979.1,2.84427713]
[1731118388968,0.55,2980.2,2979.1,2.84427713]
[1731118389204,0.7995,2980.1,2979.2,0.28442771]
[1731118390442,0.7995,2980.1,2978.9,3.0]
[1731118391700,0.7995,2980.1,2979.1,2.84427713]
[1731118391907,0.7995,2980.1,2979.2,3.0]
[1731118392092,0.7995,2980.1,2979.4,2.84427713]
[1731118392301,0.7995,2980.1,2979.5,0.35825502]
[1731118392670,0.7995,2980.1,2979.5,0.29113988]
[1731118392865,0.7995,2980.1,2979.2,3.0]
[1731118394240,0.7995,2980.1,2978.5,0.8077]
[1731118394381,0.7995,2979.9,2978.4,0.8077]
[1731118395186,0.55,2979.6,2978.0,3.65197713]
[1731118395517,0.55,2979.4,2978.1,0.36519771]
[1731118395593,0.7995,2979.3,2978.1,0.36519771]
[1731118396372,0.7995,2979.3,2977.6,2.84427713]
[1731118396574,4.10272422,2979.4,2977.6,2.84427713]
[1731118396826,0.55,2979.0,2977.6,2.84427713]
[1731118397023,0.7995,2978.9,2977.6,2.84427713]
[1731118397372,0.7995,2978.9,2977.5,0.8077]
[1731118398475,0.7995,2978.7,2977.5,0.43116875]
[1731118399238,0.55,2978.6,2977.6,0.06715803]
[1731118399526,0.8021,2978.5,2976.9,0.7714]
[1731118400317,0.8021,2978.5,2976.9,0.83856417]
[1731118400487,0.8021,2978.5,2976.9,0.7714]
[1731118400808,0.8021,2978.3,2977.0,0.50142201]
[1731118402396,0.8021,2978.3,2977.0,0.43425516]
[1731118403595,0.8021,2978.3,2977.1,0.06716687]
[1731118404118,0.8021,2978.3,2977.0,0.43425516]
[1731118407531,0.8021,2978.3,2977.0,0.50142206]
[1731118407694,0.8021,2978.3,2977.1,0.42728221]
[1731118407898,0.8021,2978.3,2977.2,3.50398746]
[1731118408122,0.8021,2978.3,2977.3,3.0]
[1731118409805,0.8021,2978.3,2977.4,0.06715794]
[1731118410195,0.8021,2978.3,2977.3,3.0]
[1731118410428,0.8021,2978.3,2977.4,0.7175567]
[1731118410731,0.8021,2978.3,2977.4,1.4889567]
[1731118415396,0.8021,2978.3,2977.4,1.42179875]
[1731118417725,0.8021,2978.3,2977.5,0.06715444]
[1731118418157,0.8021,2978.3,2977.4,1.42179875]
[1731118418481,0.8021,2978.3,2977.5,0.44217988]
[1731118419832,0.8021,2978.3,2976.8,3.8059]
[1731118420142,0.8021,2978.3,2977.0,2.84725573]
[1731118420676,0.8021,2978.3,2977.1,3.0]
[1731118420835,0.8021,2978.3,2977.2,0.06716464]
[1731118421025,0.8021,2978.3,2977.1,3.0]
[1731118421249,0.8021,2978.3,2977.2,0.58472557]
[1731118423325,0.8021,2978.3,2976.8,3.0]
[1731118426180,0.8141,2978.2,2976.5,0.1382652]
[1731118427489,0.8141,2978.1,2976.5,3.1382652]
[1731118430812,0.8141,2978.1,2976.8,3.0]
[1731118430949,0.8141,2978.1,2976.9,0.58472557]
[1731118434009,0.8141,2978.1,2976.5,0.1382652]
[1731118434010,0.8141,2978.1,2976.5,3.1382652]
[1731118435908,0.8141,2978.1,2976.6,0.06717623]
[1731118436075,0.8141,2978.1,2976.5,3.1382652]
[1731118438579,0.8141,2978.1,2976.6,0.06717631]
[1731118438768,0.8141,2978.1,2976.5,3.1382652]
[1731118439112,0.8141,2978.1,2976.6,0.59855209]
[1731118439481,0.8141,2978.1,2976.8,3.0]
[1731118441018,0.8141,2978.1,2977.1,3.0]
[1731118441174,0.8141,2978.1,2977.2,0.06716748]
[1731118442213,0.8141,2978.1,2976.9,3.0]
[1731118442369,0.8141,2978.1,2977.0,0.66070557]
[1731118443475,0.8141,2978.1,2976.6,3.0]
[1731118445286,0.8141,2978.1,2976.7,3.0]
[1731118446597,0.6965801,2978.1,2976.7,3.0]
[1731118446811,0.791,2978.0,2976.7,3.0]
[1731118452286,0.791,2977.9,2976.7,3.0]
[1731118452485,0.791,2977.9,2976.8,0.58472557]
[1731118452817,0.791,2977.8,2976.8,0.58472557]
[1731118455783,0.791,2977.8,2976.7,3.0]
[1731118455981,0.86803854,2977.7,2976.5,0.1382652]
[1731118456320,0.791,2977.6,2976.5,0.1382652]
[1731118456892,0.78950518,2977.6,2976.5,0.1382652]
[1731118458198,0.6965801,2977.6,2976.5,0.1382652]
[1731118458805,0.55,2977.6,2976.5,0.1382652]
[1731118459123,1.2465801,2977.6,2976.5,0.1382652]
[1731118459895,0.8281,2977.5,2976.5,0.1382652]
[1731118460095,0.8281,2977.3,2976.5,0.1382652]
[1731118460534,0.8281,2977.3,2976.8,2.84725573]
[1731118460737,0.8281,2977.3,2976.9,3.06717698]
[1731118461240,0.8281,2977.3,2976.9,3.0]
[1731118461393,0.8281,2977.3,2976.9,3.06717479]
[1731118461593,0.8281,2977.3,2977.0,0.59144305]
[1731118464031,0.8281,2978.0,2977.0,0.59144305]
[1731118465405,0.55,2977.9,2976.9,3.0]
[1731118465620,0.8281,2977.7,2976.9,3.0]
[1731118470305,0.8281,2977.7,2976.6,3.0]
[1731118475081,0.8281,2977.7,2976.9,3.0]
[1731118476557,17.07,2974.3,2972.8,1.78512885]
[1731118476775,3.525,2974.2,2970.5,7.52134898]
[1731118477070,0.01,2972.8,2970.1,7.33539745]
[1731118477213,0.01,2972.8,2969.2,7.52134898]
[1731118477214,0.01,2967.9,2964.6,10.32807887]
[1731118477425,0.01,2967.2,2964.7,2.84725573]
[1731118477569,2.1254963,2967.1,2964.8,1.30235846]
[1731118477764,1.52128235,2967.3,2965.7,2.84725573]
[1731118478016,1.52128235,2967.3,2964.9,0.769]
[1731118478017,0.69292018,2965.8,2964.9,0.769]
[1731118478216,1.03938027,2965.0,2964.9,0.06722411]
[1731118478395,2.10074517,2965.0,2964.2,5.0]
[1731118478590,2.4262539,2965.6,2964.3,5.56742586]
[1731118478922,1.03168252,2965.3,2964.4,5.0]
[1731118479110,1.37557669,2965.4,2964.4,5.0]
[1731118479111,2.4262539,2968.0,2964.5,0.24227696]
[1731118479406,0.84960369,2967.3,2966.3,3.9697404]
[1731118479608,2.4262539,2968.2,2966.4,0.0673875]
[1731118479920,2.4262539,2968.3,2967.0,3.9697404]
[1731118480081,0.01,2968.8,2967.1,0.39697404]
[1731118480289,0.01,2968.8,2968.2,3.9697404]
[1731118480613,0.01,2968.6,2967.8,3.9697404]
[1731118480902,0.01,2968.6,2967.9,0.06737641]
[1731118481068,0.01,2968.6,2967.8,3.9697404]
[1731118481270,0.02,2968.9,2967.9,0.39697404]
[1731118481469,0.01,2968.7,2967.9,0.39697404]
[1731118481779,0.01,2968.7,2967.1,0.39697404]
[1731118481968,0.01,2968.7,2965.3,3.0]
[1731118482164,0.34798829,2969.3,2965.3,0.22174555]
[1731118482165,0.01,2968.3,2965.3,0.22174555]
[1731118482396,0.01,2967.4,2964.7,0.7942]
[1731118482598,0.01,2967.6,2964.7,0.7942]
[1731118482972,0.794,2968.2,2964.8,0.287155]
[1731118483197,0.56,2968.1,2964.9,0.6081355]
[1731118483375,0.794,2968.2,2965.0,5.35454282]
[1731118483998,0.18941618,2970.2,2965.0,5.35454282]
[1731118483999,0.01,2968.9,2965.5,3.37]
[1731118484204,0.01,2969.1,2965.9,3.0]
[1731118484375,0.01,2969.1,2966.0,1.92263575]
[1731118484710,0.01,2969.1,2966.2,0.55]
[1731118484870,0.01,2969.1,2966.3,0.57843575]
[1731118485079,0.01,2969.4,2966.4,0.55]
[1731118485385,0.01,2969.4,2966.6,0.55]
[1731118485704,0.01,2969.5,2966.8,0.55]
[1731118485907,0.01,2969.5,2967.2,0.55]
[1731118486215,0.02,2969.9,2967.4,0.55]
[1731118486464,0.01,2969.9,2967.6,0.55]
[1731118486580,0.01,2970.0,2967.6,0.55]
[1731118486775,0.01,2969.5,2967.5,0.55]
[1731118486986,0.01,2969.7,2967.5,0.55]
[1731118487295,0.01,2969.8,2967.1,0.7942]
[1731118487296,0.01,2969.5,2967.2,0.55]
[1731118487506,0.01,2969.5,2967.3,0.19226358]
[1731118487688,0.01,2969.5,2967.3,0.77069933]
[1731118487886,0.01,2969.5,2967.4,0.64578475]
[1731118488206,0.01,2969.5,2967.4,0.57843575]
[1731118488577,0.02,2969.7,2967.5,0.06735293]
[1731118488800,0.01,2969.7,2967.5,0.578436]
[1731118489974,0.55,2969.5,2967.5,0.578436]
[1731118490175,0.10993119,2969.4,2967.5,0.578436]
[1731118490702,0.10993119,2969.4,2967.1,0.7942]
[1731118490703,0.8204,2969.0,2967.1,0.7942]
[1731118490899,0.10993119,2968.9,2967.2,0.06736503]
[1731118491083,0.10993119,2968.9,2967.1,0.7942]
[1731118491406,0.56,2968.8,2966.3,0.44493981]
[1731118491707,0.55,2968.6,2966.4,0.06736505]
[1731118491876,0.55,2968.4,2966.4,0.06736505]
[1731118492075,0.10993119,2968.3,2966.4,0.06736505]
[1731118492729,0.10993119,2968.3,2966.5,0.44493981]
[1731118493022,0.8204,2969.0,2966.7,0.55]
[1731118493269,0.8204,2969.0,2966.9,0.55]
[1731118493511,0.8204,2969.0,2967.1,0.55]
[1731118493713,0.8204,2969.0,2967.3,0.55]
[1731118493920,0.8204,2969.0,2967.4,0.06735369]
[1731118494277,0.8204,2969.0,2966.9,0.55]
[1731118494674,0.8204,2969.0,2967.1,0.55]
[1731118494877,0.8204,2969.0,2967.3,0.55]
[1731118495083,0.8204,2969.0,2967.4,0.06735436]
[1731118495811,0.8204,2969.7,2967.5,0.7615]
[1731118496084,0.8204,2969.7,2967.6,0.06734751]
[1731118496587,0.8204,2969.7,2967.5,0.7615]
[1731118496778,0.8204,2969.7,2967.6,0.06734713]
[1731118497047,0.8204,2969.7,2968.2,3.0]
[1731118497223,0.8304,2969.7,2967.5,0.7615]
[1731118497515,0.8304,2969.7,2967.6,0.06734563]
[1731118497717,0.8204,2969.7,2967.6,0.06734563]
[1731118497879,0.8304,2969.7,2967.6,0.06734563]
[1731118498077,0.8204,2969.7,2967.6,0.06734481]
[1731118498282,0.8204,2969.7,2967.5,0.7615]
[1731118498481,0.8304,2969.7,2967.5,0.95471547]
[1731118498980,0.8204,2969.7,2967.5,0.95471547]
[1731118499181,0.8304,2969.7,2967.5,0.95471547]
[1731118500022,0.83008789,2969.7,2967.5,0.95471547]
[1731118500504,0.82008789,2969.7,2967.6,0.6173447]
[1731118500824,0.82008789,2969.7,2967.8,0.55]
[1731118501026,0.82008789,2969.7,2968.0,0.55]
[1731118505101,0.7536,2970.4,2968.0,4.075]
[1731118505395,0.7536,2970.4,2968.2,0.55]
[1731118506719,0.7536,2970.4,2968.4,0.55]
[1731118507031,0.7536,2970.4,2968.5,0.06732421]
[1731118507907,0.7536,2970.4,2968.6,0.55]
[1731118508111,0.7536,2970.4,2968.7,0.06732152]
[1731118508309,0.7536,2970.4,2968.8,0.06732187]
[1731118509011,0.7536,2970.4,2968.8,0.755]
[1731118509213,35.0,2970.0,2969.0,3.0]
[1731118509520,2.07947113,2969.9,2969.1,0.3]
[1731118509831,1.51003443,2969.9,2968.8,0.755]
[1731118510439,1.51003443,2969.9,2968.4,0.55]
[1731118510641,1.51003443,2969.9,2968.5,0.06733217]
[1731118510843,1.51003443,2969.9,2968.2,1.19993981]
[1731118510844,1.51003443,2969.9,2968.2,0.15360763]
[1731118511010,0.7536,2969.8,2967.7,0.755]
[1731118512157,0.7536,2969.8,2967.8,0.55]
[1731118512467,0.82094691,2969.8,2967.7,0.14957618]
[1731118512634,0.82094691,2969.8,2967.2,0.755]
[1731118512822,0.47360664,2969.7,2967.2,0.90546188]
[1731118513426,0.7536,2969.6,2967.2,0.90546188]
[1731118514621,0.7636,2969.4,2967.2,0.15046188]